Cogmind - Beta 13 @@@ ROGUE MODE // 2024.08.04 @ 04:24:55 Player: jagoly Result: Destroyed by B-75 Beast with Magnetic Acceleration Cannon Performance ------------- Evolutions (2) 1000 Regions Visited (6) 1200 Robots Destroyed (182) 910 Value Destroyed (6616) 6616 Prototype IDs (24) 480 Alien Tech Used (0) 0 Bonus (1699) 1699 TOTAL SCORE: 11905 Bonus ------- High Alert Combat Kills 931 Follower Combat Kills 753 Entered Garrisons 200 Friendly Fire -185 Cogmind --------- Core Integrity 0/550 Matter 300/300 Energy 63/100 System Corruption 0% Temperature Hot (293) Movement Core (850) Ox16 Location -8/Garrison Parts ------- > --- POWER (1) -------- (None) > --- PROPULSION (4) --- (None) > --- UTILITY (4) ------ High-capacity Storage Unit Advanced Targeting Computer Focal Shield > --- WEAPON (2) ------- Advanced Beam Cannon Advanced Beam Cannon > --- INVENTORY (20) --- Cooled Ion Engine Light Treads Armored Treads Advanced Treads Advanced Treads Advanced Treads Advanced Treads Cooling System Huge Storage Unit High-capacity Matter Pod (200) Focal Shield Focal Shield Drone Bay (2/2) Heavy Particle Gun Coil Gun Coil Gun Coil Gun Heavy Rocket Launcher Improved Datajack Peak State ------------ > --- POWER ------------ Nuclear Core > --- PROPULSION ------- Armored Treads Armored Treads Advanced Treads Advanced Treads > --- UTILITY ---------- Improved Heat Sink High-capacity Storage Unit Advanced Targeting Computer Shield Generator > --- WEAPON ----------- Advanced Beam Cannon Heavy Rocket Launcher > --- INVENTORY -------- Cooled Ion Engine Cooled Ion Engine Armored Treads Advanced Treads Advanced Treads Advanced Treads Advanced Treads Cooling System Huge Storage Unit High-capacity Matter Pod Hardened Medium Armor Plating Shield Generator Hacking Suite Drone Bay Heavy Particle Gun Advanced Beam Cannon Ion Cannon Gauss Rifle Improved Datajack Maul [Rating: 36] Favorites ----------- Power Heavy Ion Engine Engine Heavy Ion Engine Power Core Nuclear Core Propulsion Light Treads Treads Light Treads Leg Aluminum Leg Wheel Armored Wheel Flight Unit Cooled VTOL Module Utility Improved Heat Sink Device Improved Heat Sink Storage High-capacity Storage Unit Processor Advanced Targeting Computer Hackware System Shield Protection Light Armor Plating Weapon Advanced Beam Cannon Energy Gun Beam Rifle Energy Cannon Advanced Beam Cannon Ballistic Gun Assault Rifle Ballistic Cannon Assault Cannon Launcher Heavy Rocket Launcher Impact Weapon Maul Build | -11 -10 -10 -9 -9 -8 -8 ------- Run | Yrd Mat Min Mat Sto Mat Gar Slots Evolved 4 | . . . 2 . 2 . Power . | . . . . . . . Propulsion 2 | . . . 1 . 1 . Utility 2 | . . . 1 . 1 . Weapon . | . . . . . . . Parts Attached 162 | 6 10 . 45 46 31 24 Power 16 | 1 1 . 4 3 2 5 Engine 9 | 1 1 . 4 2 1 . Core 7 | . . . . 1 1 5 Reactor . | . . . . . . . Propulsion 65 | 2 5 . 17 22 10 9 Treads 51 | . 5 . 13 18 10 5 Leg 6 | 2 . . . . . 4 Wheel 7 | . . . 4 3 . . Hover . | . . . . . . . Flight 1 | . . . . 1 . . Utility 44 | 1 4 . 12 8 14 5 Device 24 | . . . 5 7 9 3 Storage 7 | 1 2 . 2 1 1 . Processor 2 | . . . . . 2 . Hackware 2 | . . . . . 1 1 Protection 9 | . 2 . 5 . 1 1 Artifact . | . . . . . . . Weapon 37 | 2 . . 12 13 5 5 Energy Gun 11 | 1 . . 8 2 . . Energy Cannon 14 | . . . . 7 4 3 Ballistic Gun 3 | 1 . . 1 . . 1 Ballistic Cannon 1 | . . . . 1 . . Launcher 5 | . . . 3 . 1 1 Special Weapon . | . . . . . . . Impact Weapon 3 | . . . . 3 . . Slashing Weapon . | . . . . . . . Piercing Weapon . | . . . . . . . Special Melee Weapon . | . . . . . . . Unidentified Prototypes 3 | . . . 1 2 . . Parts Lost 26 | . 2 . 6 2 3 13 Power 3 | . . . . 1 . 2 Propulsion 8 | . 1 . . . . 7 Utility 8 | . 1 . 2 . 2 3 Weapon 7 | . . . 4 1 1 1 Highest Loss Streak 8 | . 1 . 2 2 3 8 To Critical Strikes . | . . . . . . . Average Slot Usage (%) 98 | . 99 100 99 99 99 96 Engine 8 | . 14 14 10 9 8 . Core 2 | . . . . 1 . 8 Treads 29 | . 18 28 29 24 35 32 Leg 1 | . 8 . . . . 3 Wheel 2 | . . . 2 8 . . Device 12 | . . . 11 21 17 14 Storage 10 | . 14 14 11 11 9 9 Processor 3 | . . . . . 7 9 Protection 5 | . 13 14 10 . . 1 Energy Gun 8 | . 14 14 19 3 . . Energy Cannon 9 | . . . . 17 17 15 Ballistic Gun 3 | . 14 14 1 . . . Naked Turns . | . . . . . . . Heaviest Build 99 | 12 30 30 94 99 65 65 Greatest Support 90 | 20 40 40 60 69 90 84 Greatest Overweight (x) 9 | . . . 7 9 . 1 Average Overweight (x) . | . . . 1 1 . . Largest Inventory Capacity 25 | 8 15 15 25 25 20 20 Average Capacity 18 | 6 12 15 17 21 20 20 Most Carried 25 | 3 11 12 25 25 20 20 Average Carried 16 | 1 8 11 15 21 19 18 Final Capacity 25 | 8 15 15 25 20 20 20 Final Carried 25 | 3 11 12 25 20 20 19 Class Distribution -------------------- 73% | Mutant 20% | Scavenger-Mutant 5% | Commander-Mutant Dominant Class ---------------- Mutant | -10/Materials Mutant | -10/Mines Scavenger-Mutant | -9/Materials Mutant | -9/Storage Mutant | -8/Materials Mutant | -8/Garrison Resources | -11 -10 -10 -9 -9 -8 -8 ----------- Run | Yrd Mat Min Mat Sto Mat Gar Matter Collected 2570 | 122 420 15 879 480 328 326 Remotely . | . . . . . . . Salvage Created 6896 | . 731 45 2029 1433 1581 1077 Parts 349 | . 61 4 105 70 67 42 Haulers Intercepted 15 | . 2 . 5 5 3 . Recyclers Shooed 4 | . 3 . 1 . . . Parts Field Recycled . | . . . . . . . Retrieved Matter . | . . . . . . . Parts Self-Destructed . | . . . . . . . Prevented . | . . . . . . . Kills | -11 -10 -10 -9 -9 -8 -8 ------- Run | Yrd Mat Min Mat Sto Mat Gar Combat Hostiles Destroyed 131 | . 17 3 41 20 25 25 Guns 49 | . 17 3 26 3 . . Cannons 53 | . . . . 17 21 15 AOE 26 | . . . 15 . 2 9 Classes Destroyed 16 | . 7 . 7 . 1 1 Worker 4 | . . . 1 2 1 . Builder 4 | . . . 1 2 1 . Tunneler 2 | . 1 . 1 . . . Hauler 15 | . 2 . 5 5 3 . Recycler 7 | . 1 . 4 2 . . Mechanic 1 | . . . 1 . . . Operator 4 | . 1 . 2 1 . . Watcher 13 | . 3 . 3 2 4 1 Swarmer 19 | . 9 3 3 4 . . Cutter 3 | . . . . . . 3 Grunt 66 | . 8 . 24 6 13 15 Brawler 3 | . . . 2 . 1 . Duelist 9 | . . . 3 1 1 4 Protector 2 | . . . 2 . . . Sentry 25 | . . . 7 9 7 2 Hunter 4 | . . . . . 3 1 Savage 1 | . . . . . . 1 Best Kill Streak 14 | . 4 2 14 7 4 9 Combat Bots Only 9 | . 3 2 7 4 4 9 Max Kills in Single Turn 4 | . 2 1 4 2 3 2 Gunslinging 1 | . 1 . . . . . Exploded 3 | . . . 3 . 2 2 Melee . | . . . . . . . Uniques/NPCs Destroyed . | . . . . . . . Combat | -11 -10 -10 -9 -9 -8 -8 -------- Run | Yrd Mat Min Mat Sto Mat Gar Hostile Shots Fired 616 | . 74 14 153 79 109 187 Missed 163 | . 15 2 43 17 26 60 Damage Taken 6430 | . 591 91 1621 656 1006 2465 Core 951 | . 80 . 221 89 62 499 Absorbed by Shields 941 | . . . 90 234 326 291 Ignored by Resistances 92 | . . . . . . 92 Regen/Repaired (Parts) 283 | . 159 . . . 124 . Core Remaining (%) 63 | 100 . 68 . 22 . . Volleys Fired 486 | . 64 5 133 90 95 99 Largest 2 | . 2 2 2 2 2 2 Hottest 136 | . 70 70 112 136 136 136 Shots Fired 922 | . 124 10 249 172 188 179 Gun 414 | . 124 10 238 42 . . Cannon 486 | . . . . 130 186 170 Launcher 22 | . . . 11 . 2 9 Special . | . . . . . . . Kinetic 114 | . 64 5 43 2 . . Thermal 786 | . 60 5 195 170 186 170 Explosive 22 | . . . 11 . 2 9 Electromagnetic . | . . . . . . . Robot Hit Streak 17 | . 11 2 17 14 12 13 Robot Miss Streak 7 | . 7 3 4 7 4 3 Penetration Max . | . . . . . . . Secondary Targets 7 | . 2 1 4 . . . Max Gunslinging Chain 1 | . 1 1 1 . . . Shots Hit Robots 564 | . 66 4 171 106 125 92 Core Hits 287 | . 38 3 111 37 51 47 Critical Kills 4 | . . . . 1 2 1 Critical Parts Destroyed 1 | . . . . 1 . . Critical Strikes 22 | . 2 . 14 3 2 1 Burn 17 | . 2 . 14 1 . . Meltdown 4 | . . . . 1 2 1 Smash 1 | . . . . 1 . . Melee Attacks 30 | . . . . 30 . . Impact 30 | . . . . 30 . . Slashing . | . . . . . . . Piercing . | . . . . . . . Sneak Attacks 2 | . . . . 2 . . Combat Hostiles . | . . . . . . . Follow-up Attacks . | . . . . . . . Damage Inflicted 13494 | . 952 63 4480 2281 2905 2813 Guns 4016 | . 952 63 2526 475 . . Cannons 6128 | . . . . 1644 2625 1859 Explosions 3188 | . . . 1954 . 280 954 Melee 162 | . . . . 162 . . Ramming . | . . . . . . . Kinetic 990 | . 517 38 435 . . . Thermal 9154 | . 435 25 2091 2119 2625 1859 Explosive 3188 | . . . 1954 . 280 954 Electromagnetic . | . . . . . . . Impact 162 | . . . . 162 . . Slashing . | . . . . . . . Piercing . | . . . . . . . Highest Corruption 2 | . . . . 2 . . Average Corruption 1 | . . . . 1 . . Corruption Purged . | . . . . . . . Corruption Blocked . | . . . . . . . Effects 17 | . . . . 17 . . Message Errors 3 | . . . . 3 . . Matter Fused 3 | . . . . 3 . . Heat Flow Errors 1 | . . . . 1 . . Energy Discharges 2 | . . . . 2 . . Parts Rejected 1 | . . . . 1 . . Parts Fused 1 | . . . . 1 . . Data Loss (minor) 4 | . . . . 4 . . Misfires 1 | . . . . 1 . . Alerts 1 | . . . . 1 . . Overload Shots . | . . . . . . . Overflow Damage 264 | . . . 36 147 65 16 Projectiles 65 | . . . . 25 33 7 Explosions 77 | . . . 36 . 32 9 Melee 122 | . . . . 122 . . Knockbacks . | . . . . . . . Impact . | . . . . . . . Kinetic . | . . . . . . . Secondary . | . . . . . . . Self-Inflicted Damage 296 | . . . 152 . 1 143 Shots 8 | . . . 4 . 1 3 Rammed . | . . . . . . . Targets Rammed . | . . . . . . . Kicked . | . . . . . . . Crushed . | . . . . . . . Highest Temperature 365 | . 263 36 165 365 197 281 Average Temperature 57 | . 56 13 53 73 49 56 Received Heat Transfer 1977 | . 258 . 630 174 448 467 Siege Activations . | . . . . . . . Robots Corrupted . | . . . . . . . Combat Hostiles . | . . . . . . . Parts Fried 7 | . . . . 6 . 1 Impact Corruptions 6 | . . . . 6 . . Robots Melted 4 | . . . . 1 2 1 Combat Hostiles 3 | . . . . . 2 1 Parts Melted 43 | . 1 . 11 13 14 4 Heat Transferred 19711 | . 1443 74 5910 4218 4736 3330 Parts Sabotaged . | . . . . . . . Parts Stolen . | . . . . . . . Parts Stripped . | . . . . . . . Power Chain Reactions . | . . . . . . . Alert | -11 -10 -10 -9 -9 -8 -8 ------- Run | Yrd Mat Min Mat Sto Mat Gar Peak Influence 1996 | . 311 217 823 687 628 1996 Initial 347 | . . 102 . 347 282 230 Average 508 | . 139 75 417 384 307 1226 Maximum Alert Level 5 | . 1 1 3 2 2 5 Low Security (%) 24 | 100 62 92 12 22 13 . Level 1 31 | . 37 7 33 30 67 6 Level 2 23 | . . . 39 47 18 14 Level 3 8 | . . . 14 . . 21 Level 4 5 | . . . . . . 26 Level 5 6 | . . . . . . 30 High Security . | . . . . . . . Max Security . | . . . . . . . Sterilizations 1 | . . . 1 . . . Squads Dispatched 27 | . 5 . 9 10 3 . Investigation 12 | . 4 . 4 3 1 . Extermination . | . . . . . . . Reinforcement 4 | . 1 . 1 1 1 . Assault 4 | . . . 4 . . . Garrison 7 | . . . . 6 1 . Intercept . | . . . . . . . Searches Triggered . | . . . . . . . Construction Impeded 1 | . . . . . 1 . Haulers Reinforced . | . . . . . . . Active Scanning Responses . | . . . . . . . Cargo Convoy Interrupts . | . . . . . . . Stealth | -11 -10 -10 -9 -9 -8 -8 --------- Run | Yrd Mat Min Mat Sto Mat Gar Distress Signals 9 | . 2 . 1 3 3 . Communications Jammed . | . . . . . . . Distress Signals . | . . . . . . . Times Spotted 217 | . 27 7 73 31 42 37 Peak Tracking Total 10 | . 5 3 10 4 7 9 Tactical Retreats 12 | . 1 . 5 . 4 2 Traps | -11 -10 -10 -9 -9 -8 -8 ------- Run | Yrd Mat Min Mat Sto Mat Gar Traps Triggered 9 | . 2 . . 7 . . Indirectly . | . . . . . . . Trap Hack Attempts . | . . . . . . . Triggered . | . . . . . . . Disarmed . | . . . . . . . Reprogrammed . | . . . . . . . Reused . | . . . . . . . Traps Extracted . | . . . . . . . Installed . | . . . . . . . Triggered . | . . . . . . . Machines | -11 -10 -10 -9 -9 -8 -8 ---------- Run | Yrd Mat Min Mat Sto Mat Gar Machines Disabled 20 | . . . 3 2 6 9 Max in Single Turn 2 | . . . 2 1 1 2 Garrison Relay 5 | . . . . . . 5 Phase Generator 1 | . . . . . . 1 Machines Repaired . | . . . . . . . Machines Dismantled . | . . . . . . . Machines Sabotaged . | . . . . . . . Overloaded Fab Kills . | . . . . . . . Hacking | -11 -10 -10 -9 -9 -8 -8 --------- Run | Yrd Mat Min Mat Sto Mat Gar Machines Accessed 54 | . 10 . 11 15 14 4 Terminals 40 | . 7 . 9 10 10 4 Fabricators . | . . . . . . . Repair Stations 6 | . 1 . 1 2 2 . Recycling Units 6 | . 2 . 1 2 1 . Scanalyzers . | . . . . . . . Garrison Access 2 | . . . . 1 1 . Total Hacks 163 | . 36 . 32 38 48 9 Successful 80 | . 25 . 12 17 24 2 Failed 83 | . 11 . 20 21 24 7 Catastrophic 21 | . 3 . 2 8 6 2 Database Lockouts . | . . . . . . . Manual 71 | . 20 . 14 16 20 1 Terminals 131 | . 27 . 28 29 38 9 Fabricators . | . . . . . . . Repair Stations 16 | . 5 . 2 3 6 . Recycling Units 12 | . 4 . 2 4 2 . Scanalyzers . | . . . . . . . Garrison Access 4 | . . . . 2 2 . Terminal Hacks 60 | . 17 . 10 12 19 2 Prototype ID Bank 29 | . 8 . 6 6 9 . Open Door 2 | . . . . 1 . 1 Branch Access Points 1 | . . . 1 . . . Emergency Access Points 2 | . 1 . . . . 1 Terminal Index 2 | . 1 . . . 1 . Alert Level 4 | . 1 . . 1 2 . Unreport Threat 8 | . 2 . 1 2 3 . Locate Traps 7 | . 2 . 2 2 1 . Hauler Manifests 2 | . 1 . . . 1 . Registered Components 2 | . 1 . . . 1 . Registered Prototypes 1 | . . . . . 1 . Fabricator Hacks . | . . . . . . . Repair Station Hacks 8 | . 4 . . 1 3 . Scan Component 5 | . 2 . . 1 2 . Repair 3 | . 2 . . . 1 . Recycling Unit Hacks 4 | . 2 . 1 1 . . Retrieve Components 4 | . 2 . 1 1 . . Scanalyzer . | . . . . . . . Garrison Access Hacks 1 | . . . . . 1 . Unlock Access 1 | . . . . . 1 . Unauthorized Hacks 7 | . 2 . 1 3 1 . Terminals 1 | . . . . 1 . . Operators 1 | . . . . 1 . . Fabricators . | . . . . . . . Repair Stations . | . . . . . . . Recycling Units 6 | . 2 . 1 2 1 . Tunnel 6 | . 2 . 1 2 1 . Scanalyzers . | . . . . . . . Garrison Access . | . . . . . . . Data Cores Recovered 2 | . . . 2 . . . Used . | . . . . . . . Hacking Detections 49 | . 8 . 10 13 14 4 Full Trace Events 4 | . . . 3 1 . . Feedback Events . | . . . . . . . Feedback Blocked . | . . . . . . . Robot Schematics Acquired . | . . . . . . . Robots Built . | . . . . . . . Authchips . | . . . . . . . Time . | . . . . . . . Total Robot Build Rating . | . . . . . . . Part Schematics Acquired . | . . . . . . . Parts Built . | . . . . . . . Authchips . | . . . . . . . Time . | . . . . . . . Total Part Build Rating . | . . . . . . . Parts Repaired 3 | . 2 . . . 1 . Time 71 | . 52 . . . 19 . Parts Recycled . | . . . . . . . Recycled Matter . | . . . . . . . Retrieved Matter . | . . . . . . . Retrieved Components 30 | . 11 . 10 9 . . Parts Scanalyzed . | . . . . . . . Part Schematics Acquired . | . . . . . . . Parts Damaged . | . . . . . . . Bothacking | -11 -10 -10 -9 -9 -8 -8 ------------ Run | Yrd Mat Min Mat Sto Mat Gar Used RIF Installer . | . . . . . . . Robots Hacked . | . . . . . . . Non-combat . | . . . . . . . Combat . | . . . . . . . Robot Hacks Applied . | . . . . . . . Relay Couplers Released 17 | . . . . . . 17 Machine Destruction 17 | . . . . . . 17 Fabnet Peak Effective % . | . . . . . . . Robots Rewired 4 | . . . . . . 4 Allies Hacked . | . . . . . . . Hacks Repelled . | . . . . . . . Allies | -11 -10 -10 -9 -9 -8 -8 -------- Run | Yrd Mat Min Mat Sto Mat Gar Total Allies 16 | . . 2 . 10 . 4 Largest Group 10 | . . 2 2 10 3 4 Highest-Rated Group 102 | . . 45 45 88 24 102 Highest-Rated Ally 31 | . . 31 31 16 8 31 Total Orders 2 | . . . . . 2 . EXPLORE 2 | . . . . . 2 . Ally Attacks 183 | . . 7 43 70 18 45 Total Damage 2446 | . . 105 690 619 128 904 Kills 35 | . . 4 13 12 . 6 Allies Corrupted . | . . . . . . . Allies Melted . | . . . . . . . Intel | -11 -10 -10 -9 -9 -8 -8 ------- Run | Yrd Mat Min Mat Sto Mat Gar Robot Analysis Total . | . . . . . . . Derelict Logs Recovered 1 | . . 1 . . . . Drone Launches 2 | . . . . . 2 . Drone Recoveries 2 | . . . . . 2 . Exploration | -11 -10 -10 -9 -9 -8 -8 ------------- Run | Yrd Mat Min Mat Sto Mat Gar Turns Passed 11811 | 53 1523 828 2977 1883 1967 2580 Spaces Moved 6143 | 39 834 502 1488 882 1013 1385 Core 7 | 7 . . . . . . Treads 5034 | . 526 502 1192 570 1013 1231 Legs 494 | 32 308 . . . . 154 Wheels 608 | . . . 296 312 . . Hover . | . . . . . . . Flight . | . . . . . . . Fastest Speed 50 | 50 120 160 116 115 145 120 Average Speed 154 | 107 145 160 163 154 150 153 Slowest Speed 320 | 120 160 160 320 215 161 190 Overloaded Moves . | . . . . . . . Propulsion Burnouts . | . . . . . . . Robots Hopped . | . . . . . . . Cave-ins Triggered . | . . . . . . . Exploration Rate (%) 78 | 3 99 97 83 97 77 92 Regions Visited 6 Branch Regions 2 Pre-discovered Areas 8 | . 2 1 1 3 1 . Known Exits Taken 2 | . . . 1 . 1 . Unknown Exits Taken 4 | 1 1 1 . 1 . . Scrap Searched 3 | . . 3 . . . . Spaces Dug 17 | . . . . 5 . 12 Terrain Destroyed 252 | . . . 88 5 17 142 Melee 4 | . . . . 4 . . Projectile 1 | . . . . 1 . . AOE 247 | . . . 88 . 17 142 Terrain Rammed . | . . . . . . . Walls Destroyed . | . . . . . . . Machines Disabled . | . . . . . . . Actions | -11 -10 -10 -9 -9 -8 -8 --------- Run | Yrd Mat Min Mat Sto Mat Gar Total 7494 | 47 1023 517 1789 1176 1268 1674 Wait 387 | . 94 8 52 57 95 81 Move 6137 | 38 833 501 1487 881 1012 1385 Hop . | . . . . . . . Pick Up 106 | 3 15 2 38 9 16 23 Fast Attach 48 | 6 2 . 11 14 9 6 Attach 36 | . 5 . 7 5 6 13 Detach 19 | . 1 . 4 5 1 8 Swap 78 | . 3 . 27 27 16 5 Drop 104 | . 6 1 30 31 18 18 Fire 486 | . 64 5 133 90 95 99 Melee 30 | . . . . 30 . . Ram . | . . . . . . . Kick . | . . . . . . . Crush . | . . . . . . . Escape Stasis 24 | . . . . 24 . . Rewire 39 | . . . . 3 . 36 Trap . | . . . . . . . Miscellaneous . | . . . . . . . Route ------- -11/Scrapyard -10/Materials (discovered 4 exits: *Mat x3 / [*Min]) -10/Mines (discovered 4 exits: *Mat x2 / [*Exi] / [*Sub]) -9/Materials (discovered 6 exits: *Mat x3 / *Min / *Sto x2) -9/Storage -8/Materials (discovered 3 exits: [*Fac x2] / Gar) -8/Garrison (discovered 3 exits: [*Mat x3]) History --------- Turn | Location | Event 6 | -11/Scrapyard | Discovered new exit (range 16) 54 | -11/Scrapyard | Entered Materials 254 | -10/Materials | Discovered new exit (range 10) 309 | -10/Materials | Build established: Mutant 482 | -10/Materials | Discovered new exit (range 13) 960 | -10/Materials | Discovered new exit (range 16) 1349 | -10/Materials | Discovered new exit (range 16) 1448 | -10/Materials | Repaired Lgt. Treads 1477 | -10/Materials | Repaired Lgt. Treads 1577 | -10/Materials | Entered Mines 1607 | -10/Mines | Met a Derelict bent on vengeance 1900 | -10/Mines | Learned location of Zion (-7) 2231 | -10/Mines | Discovered new exit (range 6) 2276 | -10/Mines | Deemed a non-threat by the Exiles lab entrance 2276 | -10/Mines | Discovered new exit (range 5) 2317 | -10/Mines | Discovered new exit (range 5) 2345 | -10/Mines | Discovered new exit (range 9) 2405 | -10/Mines | Entered Materials 2405 | -9/Materials | Accompanied by 2 allies 2405 | -9/Materials | Evolved 2 slots: Propulsion x1, Utility x1 2410 | -9/Materials | Led the pair of lost Derelicts to an unsafe place 2593 | -9/Materials | Discovered new exit (range 16) 2839 | -9/Materials | Discovered new exit (range 14) 2916 | -9/Materials | Discovered new exit (range 5) 2956 | -9/Materials | Discovered new exit (range 10) 3002 | -9/Materials | Build established: Scavenger-Mutant 3450 | -9/Materials | Discovered new exit (range 15) 3787 | -9/Materials | Discovered new exit (range 15) 3850 | -9/Materials | Identified exit to Mines 3850 | -9/Materials | Identified exit to Storage 4405 | -9/Materials | First assault squad dispatched 4916 | -9/Materials | Core integrity fell below 50% 4947 | -9/Materials | Destroyed 7 combat bots 5067 | -9/Materials | Build established: Mutant 5248 | -9/Materials | Sterilization system engaged 5248 | -9/Materials | Non-combat units ordered to evacuate 5348 | -9/Materials | Combat units ordered to evacuate 5382 | -9/Materials | Entered Storage 6279 | -9/Storage | Garrison activated, responded to threat 6455 | -9/Storage | Discovered new exit (range 6) 6617 | -9/Storage | Assisted by bots powering up and referring to "LRC-V3" 6901 | -9/Storage | Garrison activated, responded to threat 6919 | -9/Storage | Build established: Commander-Mutant 7265 | -9/Storage | Entered Materials 7265 | -8/Materials | Accompanied by 3 allies 7265 | -8/Materials | Evolved 2 slots: Propulsion x1, Utility x1 7475 | -8/Materials | Lost 3 allies 7487 | -8/Materials | Build established: Mutant 7751 | -8/Materials | Discovered new exit (range 10) 8265 | -8/Materials | Garrison activated, responded to threat 8359 | -8/Materials | Lost 3 parts (2u1w) 8413 | -8/Materials | Discovered new exit (range 15) 8512 | -8/Materials | Identified exit to Garrison 8658 | -8/Materials | Repaired Adv. Treads 9232 | -8/Materials | Entered Garrison 9350 | -8/Garrison | Triggered checkpoint 9410 | -8/Garrison | Garrison Relay disabled 9456 | -8/Garrison | Triggered checkpoint 9486 | -8/Garrison | Triggered checkpoint 9538 | -8/Garrison | Triggered checkpoint 9569 | -8/Garrison | Garrison Relay disabled 9616 | -8/Garrison | Discovered new exit (range 15) 9726 | -8/Garrison | Triggered checkpoint 9770 | -8/Garrison | Triggered checkpoint 9781 | -8/Garrison | Triggered checkpoint 9815 | -8/Garrison | Lost 3 allies 9817 | -8/Garrison | Destroyed 9 combat bots 9862 | -8/Garrison | Discovered new exit (range 13) 9934 | -8/Garrison | Spotted B-75 Beast 9934 | -8/Garrison | Spotted B-75 Beast 10040 | -8/Garrison | Garrison Relay disabled 10124 | -8/Garrison | Garrison Relay disabled 10243 | -8/Garrison | Discovered new exit (range 12) 10316 | -8/Garrison | Triggered checkpoint 10460 | -8/Garrison | Triggered checkpoint 10511 | -8/Garrison | Garrison Relay disabled 10927 | -8/Garrison | Phase Generator disabled 11628 | -8/Garrison | Core integrity fell below 50% 11674 | -8/Garrison | Lost 8 parts (1p3n3u1w) 11806 | -8/Garrison | Core integrity fell below 20% 11812 | -8/Garrison | Destroyed by B-75 Beast with Magnetic Acceleration Cannon Last Messages --------------- 11641_ Hrd. Medium Armor Plating destroyed. 11643_ Lgt. Nuclear Core destroyed. 11683_ Identified Focal Shield. 11712_ Acquired 43 matter. 11717_ Acquired Lgt. Treads. 11773_ Acquired Hvy. Rocket Launcher. 11775_ Acquired Imp. Datajack. 11778_ Acquired Huge Storage Unit. 11781_ Acquired Cld. Ion Engine. 11782_ ALERT: Garrison interior compromised. 11783_ Acquired Adv. Treads. 11786_ Acquired Arm. Treads. 11788_ Acquired Drone Bay. 11791_ Acquired Adv. Treads. 11796_ Dropped Adv. Treads. 11796_ Acquired Adv. Treads. 11799_ Arm. Treads destroyed. 11805_ Lgt. Nuclear Core destroyed. 11805_ Adv. Treads destroyed. 11808_ Carbon-fiber Leg destroyed. Map ----- +----------------------------------------------------+ | "?????????????????????????????????????????? | | "?????????????????????????????????????????? | | ## #????????????????????###???????######?????? | | ## ######################T######## """"#?????? | | "#?????? | | ########## ### ##### ""#?????? | | #### ## #????????# #?# #????######?????? | | ## ##??# ## #????????##"##?# ###?????????????? | | ## #???# ## #?????????# #??# #"#?????????????? | | ## #???# ## ########### #??# ! #?????????????? | | ?# #???# " " !%#??# ! #?????????????? | | ?# ##### ## ########### #??# !"#?????????????? | | ?# " ## #?????????#%#??# #"#?????????????? | | ?# ########^^#????????##=##?# ###?????????????? | | ?# ######## #????????#= #?# #????######?????? | | ?# %##########% ### ##### """"#?????? | | ?# * %= %= "#?????? | | ?##+######## =################ ##### """#?????? | | ??# #??????# #?????????????#" #????######?????? | | ??# #??????# #?????????????#T #???????????????? | | ??# #??????# #?????????????#""#???????????????? | | ??# #??????# #?????????????####???????????????? | | ### ###????# #????????????????????????????????? | | #! !###### ##############???????????????????? | | #! !" ; BB=%#???????????????????? | | #! !###### !] BB@ #???????????????????? | | #!! !!#????#############/BB#???????????????????? | | #######????????????????#[BB#???????????????????? | | ???????????????????????#####???????????????????? | | ???????????????????????????????????????????????? | | ???????????????????????????????????????????????? | | ???????????????????????????????????????????????? | | ???????????????????????????????????????????????? | | ???????????????????????????????????????????????? | | ???????????????????????????????????????????????? | | ???????????????????????????????????????????????? | | ???????????????????????????????????????????????? | | ???????????????????????????????????????????????? | | ???????????????????????????????????????????????? | | ???????????????????????????????????????????????? | | ???????????????????????????????????????????????? | | ???????????????????????????????????????????????? | | ???????????????????????????????????????????????? | | ???????????????????????????????????????????????? | | ???????????????????????????????????????????????? | | ???????????????????????????????????????????????? | | ???????????????????????????????????????????????? | | ???????????????????????????????????????????????? | | ???????????????????????????????????????????????? | | ???????????????????????????????????????????????? | +----------------------------------------------------+ Best States ------------- Heat Dissipation 59 Energy Generation 14 Energy Capacity 280 Matter Stores 300 Matter Capacity 300 Sight Range 16 Terrain Scan Density 10 Additional Mass Support 12 Armor Coverage 300 Resistance: KI 20 Evasion (%) 55 Targeting Accuracy 8 Recoil Reduction 4 Offensive Hacking 10 Defensive Hacking 10 Item Schematics ----------------- None Robot Schematics ------------------ None Fabricated ------------ Nothing Alien Tech Used ----------------- None Achievements -------------- None Challenges ------------ None Game ------ Seed DispersionSignalTriangulator Manual? 0 Play Time 02:23:31 Cumulative 205.7 hours Start 2024.08.03 @ 03:11:02 End 2024.08.04 @ 04:24:55 Sessions 5 Manual Loads 0 Difficulty Rogue Special Mode None Game No. 69 Rogue 69 Adventurer 0 Explorer 0 Win Type - Total 1 Types 1/0/0/0/0/0/0/0/0 Lore% 59 Gallery% 67 Achievement% 51 Wizard Run 0 Options --------- Layout 0 ASCII 0 Keyboard 1 Movement Numpad Keybinds 0 Fullscreen 1 Font 18/X11Bold Map View 76x50 Zoom Use 0% Tactical HUD 1 Map Filters NONE Filters NONE Steam 1 RUN: 73f1dfc6-4ba4-4d74-b7f8-8990669112e6